bitfinex/quotes_SOLUSD_20250112
["timestamp","ask_amount","ask_price","bid_price","bid_amount"]
[1736666423743,8.92971867,186.27,186.21,226.42971867]
[1736666427470,36.02173181,186.34,186.23,226.42971867]
[1736666427677,8.92971867,186.3,186.24,227.23489415]
[1736666427967,8.92971867,186.3,186.24,226.42971867]
[1736666430066,8.92971867,186.29,186.24,217.5]
[1736666430270,23.776884,186.35,186.24,82.6]
[1736666430271,8.92971867,186.27,186.24,82.6]
[1736666430472,8.92971867,186.25,186.24,82.6]
[1736666434188,8.92971867,186.27,186.24,82.6]
[1736666435063,8.92971867,186.28,186.24,82.6]
[1736666436855,8.92971867,186.29,186.24,91.52971867]
[1736666437060,8.92971867,186.3,186.24,91.52971867]
[1736666437258,8.92971867,186.3,186.24,92.33482805]
[1736666437799,20.0,186.33,186.24,92.33482805]
[1736666438088,8.92971867,186.3,186.24,92.33482805]
[1736666439393,20.0,186.34,186.26,226.42971867]
[1736666439696,8.92971867,186.32,186.26,226.42971867]
[1736666439890,8.92971867,186.31,186.26,217.5]
[1736666440093,8.92971867,186.3,186.26,217.5]
[1736666440393,8.92971867,186.29,186.26,217.5]
[1736666441389,8.92971867,186.3,186.26,217.5]
[1736666442196,8.92971867,186.27,186.22,82.6]
[1736666442367,8.92971867,186.26,186.22,82.6]
[1736666442567,8.92971867,186.25,186.22,82.6]
[1736666442764,8.92971867,186.23,186.22,217.5]
[1736666443793,8.92971867,186.24,186.22,82.6]
[1736666445162,8.92971867,186.25,186.22,82.6]
[1736666445398,8.92971867,186.27,186.22,82.6]
[1736666445701,8.92971867,186.28,186.22,91.52971867]
[1736666445994,8.92971867,186.26,186.22,82.6]
[1736666451110,8.92971867,186.27,186.22,82.6]
[1736666456832,8.92971867,186.28,186.22,82.6]
[1736666458524,8.92971867,186.28,186.22,91.52971867]
[1736666459118,8.92971867,186.28,186.22,82.6]
[1736666459707,8.92971867,186.28,186.22,91.52971867]
[1736666461798,8.92971867,186.27,186.22,82.6]
[1736666462830,8.92971867,186.28,186.22,91.52971867]
[1736666463809,8.92971867,186.27,186.22,82.6]
[1736666465826,8.92971867,186.24,186.22,82.6]
[1736666466033,8.92971867,186.23,186.2,82.6]
[1736666466213,8.92971867,186.22,186.2,82.6]
[1736666474312,8.92971867,186.22,186.16,82.6]
[1736666474512,8.92971867,186.21,186.16,217.5]
[1736666478755,8.92971867,186.2,186.16,217.5]
[1736666480545,8.92971867,186.21,186.16,217.5]
[1736666480737,8.92971867,186.21,186.16,226.42971867]
[1736666481947,8.92971867,186.22,186.16,226.42971867]
[1736666486456,6.1505,186.28,186.16,226.42971867]
[1736666486457,8.92971867,186.21,186.16,226.42971867]
[1736666487045,8.92971867,186.21,186.16,217.5]
[1736666487357,8.92971867,186.2,186.16,217.5]
[1736666489369,8.92971867,186.21,186.16,217.5]
[1736666489565,8.92971867,186.22,186.16,226.42971867]
[1736666492147,8.92971867,186.21,186.16,217.5]
[1736666492548,8.92971867,186.2,186.16,217.5]
[1736666493055,8.92971867,186.17,186.14,82.6]
[1736666493651,8.92971867,186.15,186.11,82.6]
[1736666493969,8.92971867,186.14,186.11,82.6]
[1736666494150,8.92971867,186.13,186.11,82.6]
[1736666496069,1.6103,186.18,186.07,82.6]
[1736666496070,8.92971867,186.12,186.07,82.6]
[1736666498647,8.92971867,186.11,186.07,82.6]
[1736666498845,8.92971867,186.1,186.07,82.6]
[1736666500276,8.92971867,186.11,186.07,82.6]
[1736666500572,8.92971867,186.12,186.07,82.6]
[1736666501455,8.92971867,186.13,186.07,91.52971867]
[1736666503182,8.92971867,186.12,186.07,82.6]
[1736666505086,8.92971867,186.11,186.07,82.6]
[1736666505978,8.92971867,186.12,186.07,82.6]
[1736666506483,8.92971867,186.11,186.07,82.6]
[1736666510183,8.92971867,186.12,186.07,82.6]
[1736666510868,8.92971867,186.12,186.07,91.52971867]
[1736666512688,8.92971867,186.13,186.07,91.52971867]
[1736666515154,8.92971867,186.14,186.08,91.52971867]
[1736666515391,8.92971867,186.15,186.09,91.52971867]
[1736666517571,8.92971867,186.17,186.11,8.92971867]
[1736666517775,8.92971867,186.2,186.14,8.92971867]
[1736666518483,8.92971867,186.21,186.15,91.52971867]
[1736666527503,8.92971867,186.2,186.15,82.6]
[1736666529519,81.9,186.27,186.17,8.92971867]
[1736666529671,3.71591097,186.28,186.17,8.92971867]
[1736666529876,8.92971867,186.23,186.17,91.52971867]
[1736666530373,8.92971867,186.24,186.18,91.52971867]
[1736666530577,1.5909,186.28,186.2,8.92971867]
[1736666530774,81.9,186.33,186.21,91.52971867]
[1736666530775,8.92971867,186.27,186.21,91.52971867]
[1736666530992,20.0,186.25,186.22,8.92971867]
[1736666531306,8.92971867,186.28,186.22,8.92971867]
[1736666531499,8.92971867,186.27,186.21,91.52971867]
[1736666531687,8.92971867,186.26,186.21,91.52971867]
[1736666532392,8.92971867,186.27,186.21,91.52971867]
[1736666533000,8.92971867,186.28,186.22,8.92971867]
[1736666533204,8.92971867,186.26,186.21,82.6]
[1736666533386,8.92971867,186.25,186.21,82.6]
[1736666536300,28.92971867,186.27,186.21,82.6]
[1736666536506,8.92971867,186.26,186.21,82.6]
[1736666537910,20.0,186.27,186.21,82.6]
[1736666537911,8.92971867,186.25,186.21,82.6]
[1736666541707,20.0,186.29,186.21,82.6]
[1736666541918,20.0,186.29,186.23,8.92971867]
[1736666542110,8.92971867,186.29,186.23,8.92971867]
[1736666543209,8.92971867,186.28,186.22,145.48621867]
[1736666543427,8.92971867,186.28,186.22,228.08621867]
[1736666544995,8.92971867,186.27,186.22,219.1565]
[1736666546016,8.92971867,186.28,186.22,228.08621867]
[1736666546222,8.92971867,186.29,186.23,8.92971867]
[1736666546397,8.92971867,186.28,186.23,8.92971867]
[1736666546595,8.92971867,186.29,186.23,8.92971867]
[1736666547414,8.92971867,186.3,186.24,8.92971867]
[1736666548734,8.92971867,186.29,186.23,8.92971867]
[1736666548907,8.92971867,186.29,186.23,91.52971867]
[1736666549996,20.0,186.34,186.23,91.52971867]
[1736666549997,8.92971867,186.28,186.23,82.6]
[1736666550601,8.92971867,186.27,186.23,82.6]
[1736666551952,8.92971867,186.25,186.19,8.92971867]
[1736666552908,8.92971867,186.25,186.2,8.92971867]
[1736666554327,8.92971867,186.26,186.2,8.92971867]
[1736666554636,28.92971867,186.27,186.22,8.92971867]
[1736666554928,8.92971867,186.28,186.22,8.92971867]
[1736666556713,20.0,186.29,186.22,8.92971867]
[1736666556917,28.92971867,186.29,186.23,8.92971867]
[1736666557225,8.92971867,186.28,186.22,8.92971867]
[1736666557828,8.92971867,186.28,186.22,91.52971867]
[1736666559021,8.92971867,186.26,186.22,82.6]
[1736666560737,8.92971867,186.27,186.22,82.6]
[1736666568427,8.92971867,186.28,186.22,91.52971867]
[1736666569948,20.0,186.29,186.22,91.52971867]
[1736666570145,28.92971867,186.29,186.23,8.92971867]
[1736666571515,20.0,186.29,186.24,8.92971867]
[1736666572750,20.0,186.29,186.25,8.92971867]
[1736666573744,20.0,186.29,186.22,83.40523253]
[1736666573745,20.0,186.29,186.24,8.92971867]
[1736666574463,20.0,186.29,186.25,8.92971867]
[1736666574647,8.92971867,186.31,186.25,91.52971867]
[1736666578045,8.92971867,186.31,186.25,82.6]
[1736666578448,8.92971867,186.3,186.25,82.6]
[1736666578753,8.92971867,186.29,186.25,82.6]
[1736666579833,8.92971867,186.27,186.25,82.6]
[1736666581354,20.0,186.31,186.25,91.52971867]
[1736666581546,20.0,186.31,186.26,9.73476735]
[1736666581759,20.0,186.31,186.27,8.92971867]
[1736666581928,41.08938053,186.39,186.28,91.52971867]
[1736666582256,8.92971867,186.34,186.28,92.33468277]
[1736666582460,8.92971867,186.34,186.28,91.52971867]
[1736666582948,8.92971867,186.35,186.29,8.92971867]
[1736666583152,8.92971867,186.36,186.3,91.52971867]
[1736666583338,8.92971867,186.37,186.31,8.92971867]
[1736666583657,8.92971867,186.36,186.3,91.52971867]
[1736666585353,8.92971867,186.37,186.31,8.92971867]
[1736666585553,28.96935199,186.39,186.32,32.70660267]
[1736666585741,28.96935199,186.39,186.36,91.52971867]
[1736666586057,8.4027422,186.47,186.37,91.52971867]
[1736666586261,20.0,186.44,186.37,226.42971867]
[1736666586464,8.92971867,186.43,186.37,91.52971867]
[1736666586865,8.92971867,186.42,186.37,82.6]
[1736666587074,8.92971867,186.4,186.32,241.276884]
[1736666587236,8.92971867,186.4,186.34,8.92971867]
[1736666587656,8.92971867,186.4,186.35,8.92971867]
[1736666587870,8.92971867,186.41,186.35,8.92971867]
[1736666588966,8.92971867,186.43,186.37,8.92971867]
[1736666593859,8.92971867,186.43,186.37,91.52971867]
[1736666594262,8.92971867,186.42,186.37,91.52971867]
[1736666597166,8.92971867,186.4,186.37,82.6]
[1736666597551,8.92971867,186.38,186.33,91.52971867]
[1736666597857,8.92971867,186.37,186.31,226.42971867]
[1736666598263,8.92971867,186.36,186.31,217.5]
[1736666598850,8.92971867,186.34,186.26,219.0992]
[1736666599156,8.92971867,186.33,186.27,143.82971867]
[1736666599564,8.92971867,186.34,186.28,8.92971867]
[1736666600353,8.92971867,186.34,186.29,8.92971867]
[1736666604075,8.92971867,186.34,186.28,8.92971867]
[1736666604369,8.92971867,186.32,186.26,217.5]
[1736666604574,8.92971867,186.32,186.27,8.92971867]
[1736666604766,8.92971867,186.32,186.26,226.42971867]
[1736666606683,8.92971867,186.33,186.27,8.92971867]
[1736666606869,20.0,186.34,186.3,8.92971867]
[1736666610285,10.59201867,186.36,186.3,8.92971867]
[1736666611283,8.92971867,186.35,186.3,8.92971867]
[1736666614885,8.92971867,186.35,186.3,91.52971867]
[1736666615188,8.92971867,186.35,186.3,82.6]
[1736666617563,8.92971867,186.39,186.33,8.92971867]
[1736666617782,83.5623,186.41,186.35,8.92971867]
[1736666617783,10.59201867,186.41,186.35,8.92971867]
[1736666617981,8.92971867,186.41,186.35,8.92971867]
[1736666619164,8.92971867,186.41,186.35,91.52971867]
[1736666619877,8.92971867,186.42,186.36,8.92971867]
[1736666620660,8.92971867,186.41,186.35,91.52971867]
[1736666621886,8.92971867,186.42,186.36,8.92971867]
[1736666623085,28.92971867,186.43,186.37,8.92971867]
[1736666623574,8.92971867,186.42,186.36,8.92971867]
[1736666623962,28.92971867,186.43,186.37,8.92971867]
[1736666625468,81.9,186.46,186.39,8.92971867]
[1736666625670,8.92971867,186.45,186.39,8.92971867]
[1736666627664,1.6303,186.49,186.41,8.92971867]
[1736666627865,8.92971867,186.47,186.41,8.92971867]
[1736666628095,8.92971867,186.46,186.41,8.92971867]
[1736666628395,8.92971867,186.46,186.4,91.52971867]
[1736666632086,20.0,186.47,186.41,8.92971867]
[1736666632491,28.92971867,186.47,186.41,8.92971867]
[1736666632698,20.0,186.48,186.42,8.92971867]
[1736666632995,8.92971867,186.49,186.43,8.92971867]
[1736666635479,8.92971867,186.48,186.42,8.92971867]
[1736666636488,28.92971867,186.5,186.44,8.92971867]
[1736666636685,20.0,186.5,186.45,8.92971867]
[1736666638576,20.0,186.53,186.46,8.92971867]
[1736666638901,8.92971867,186.51,186.46,8.92971867]
[1736666639070,8.92971867,186.49,186.43,83.40433745]
[1736666639276,8.92971867,186.49,186.44,8.92971867]
[1736666639792,8.92971867,186.5,186.44,8.92971867]
[1736666643632,8.92971867,186.51,186.45,8.92971867]
[1736666645517,8.92971867,186.51,186.45,9.73395143]
[1736666645680,8.92971867,186.52,186.46,8.92971867]
[1736666648917,8.92971867,186.53,186.47,8.92971867]
[1736666649295,1.5025,186.58,186.49,8.92971867]
[1736666649510,8.92971867,186.55,186.49,8.92971867]
[1736666649690,8.92971867,186.56,186.5,8.92971867]
[1736666650286,1.5537,186.62,186.5,8.92971867]
[1736666650491,1.5537,186.62,186.5,9.73367623]
[1736666650688,8.92971867,186.56,186.5,9.73367623]
[1736666651428,8.92971867,186.58,186.52,8.92971867]
[1736666652303,8.92971867,186.57,186.51,8.92971867]
[1736666653319,21.5537,186.62,186.52,8.92971867]
[1736666653519,8.92971867,186.59,186.53,8.92971867]
[1736666653705,8.92971867,186.6,186.54,8.92971867]
[1736666655113,20.0,186.62,186.54,8.92971867]
[1736666655301,8.92971867,186.6,186.54,8.92971867]
[1736666655925,8.92971867,186.59,186.53,8.92971867]
[1736666657330,8.92971867,186.58,186.52,134.9]
[1736666657516,8.92971867,186.58,186.5,217.5]
[1736666657722,8.92971867,186.57,186.52,8.92971867]
[1736666658427,8.92971867,186.56,186.5,226.42971867]
[1736666658630,8.92971867,186.55,186.49,8.92971867]
[1736666659228,8.92971867,186.56,186.5,8.92971867]
[1736666659426,8.92971867,186.56,186.51,8.92971867]
[1736666660030,8.92971867,186.57,186.51,8.92971867]
[1736666660926,8.92971867,186.56,186.5,8.92971867]
[1736666662938,20.0,186.61,186.51,8.92971867]
[1736666663142,20.0,186.61,186.54,8.92971867]
[1736666663143,8.92971867,186.6,186.54,8.92971867]
[1736666663644,8.92971867,186.59,186.52,217.5]
[1736666663852,8.92971867,186.58,186.52,226.42971867]
[1736666664523,8.92971867,186.57,186.52,217.5]
[1736666665610,20.0,186.61,186.52,217.5]
[1736666665809,8.92971867,186.57,186.52,217.5]
[1736666666222,8.92971867,186.53,186.48,7.9384]
[1736666666407,8.92971867,186.5,186.44,226.42971867]
[1736666666614,8.92971867,186.5,186.44,91.52971867]
[1736666667514,8.92971867,186.51,186.45,8.92971867]
[1736666668660,8.88663648,186.51,186.45,8.92971867]
[1736666669751,8.92971867,186.52,186.46,8.92971867]
[1736666671355,8.92971867,186.51,186.46,8.92971867]
[1736666672157,8.92971867,186.51,186.45,8.92971867]
[1736666673554,8.92971867,186.51,186.46,8.92971867]
[1736666673737,8.92971867,186.52,186.46,8.92971867]
[1736666686462,8.92971867,186.5,186.44,91.52971867]
[1736666687080,8.92971867,186.48,186.43,8.0035]
[1736666687959,8.92971867,186.49,186.43,16.93321867]
[1736666688161,8.92971867,186.49,186.43,8.0035]
[1736666688746,8.92971867,186.49,186.43,16.93321867]
[1736666692845,20.0,186.53,186.46,8.92971867]
[1736666693153,8.92971867,186.51,186.45,8.92971867]
[1736666699257,8.92971867,186.5,186.44,8.92971867]
[1736666700376,8.92971867,186.5,186.43,16.93321867]
[1736666700552,8.92971867,186.49,186.43,16.93321867]
[1736666701069,8.92971867,186.5,186.43,16.93321867]
[1736666704185,8.92971867,186.5,186.44,8.92971867]
[1736666704351,20.0,186.53,186.46,8.92971867]
[1736666704678,28.92971867,186.53,186.47,8.92971867]
[1736666704849,8.92971867,186.53,186.47,8.92971867]
[1736666705681,8.92971867,186.54,186.48,8.92971867]
[1736666707581,20.0,186.57,186.49,8.92971867]
[1736666707882,8.92971867,186.58,186.52,8.92971867]
[1736666709158,8.92971867,186.58,186.5,0.80406483]
[1736666709387,8.92971867,186.56,186.5,8.92971867]
[1736666713767,20.0,186.59,186.5,8.92971867]
[1736666713967,8.92971867,186.56,186.5,8.92971867]
[1736666720893,8.92971867,186.6,186.54,8.92971867]
[1736666721501,28.92971867,186.6,186.54,8.92971867]
[1736666722295,8.92971867,186.59,186.53,8.92971867]
[1736666722479,8.92971867,186.57,186.49,223.9697]
[1736666722682,8.92971867,186.57,186.51,8.92971867]
[1736666723382,8.92971867,186.56,186.5,8.92971867]
[1736666728603,12.554,186.63,186.49,6.4697]
[1736666728809,8.92971867,186.53,186.46,1.5924]
[1736666728999,8.92971867,186.52,186.46,1.5924]
[1736666729299,8.92971867,186.52,186.46,10.52211867]
[1736666729803,8.92971867,186.5,186.46,1.5924]
[1736666729977,8.92971867,186.5,186.44,15.30851867]
[1736666729978,8.92971867,186.49,186.44,6.3788]
[1736666730407,8.92971867,186.48,186.42,91.52971867]
[1736666731101,81.9,186.56,186.44,8.92971867]
[1736666731276,20.0,186.53,186.48,8.92971867]
[1736666731476,20.0,186.53,186.49,8.92971867]
[1736666731800,23.776884,186.6,186.5,8.92971867]
[1736666731989,8.92971867,186.56,186.5,8.92971867]
[1736666732187,7.6125,186.61,186.51,8.92971867]
[1736666732393,8.92971867,186.59,186.53,8.92971867]
[1736666734009,8.92971867,186.58,186.52,8.92971867]
[1736666735706,28.92971867,186.59,186.53,8.92971867]
[1736666738796,8.92971867,186.58,186.52,8.92971867]
[1736666742501,20.0,186.62,186.52,8.92971867]
[1736666742816,8.92971867,186.58,186.52,8.92971867]
[1736666744122,8.92971867,186.59,186.53,8.92971867]
[1736666747145,8.92971867,186.58,186.52,8.92971867]
[1736666748223,8.92971867,186.58,186.5,0.80399288]
[1736666748430,8.92971867,186.58,186.52,8.92971867]
[1736666750801,8.92971867,186.59,186.53,8.92971867]
[1736666751523,8.92971867,186.57,186.51,8.92971867]
[1736666751726,8.92971867,186.57,186.5,0.80399288]
[1736666752026,8.92971867,186.57,186.51,8.92971867]
[1736666754913,20.0,186.62,186.51,8.92971867]
[1736666755325,8.92971867,186.57,186.51,8.92971867]
[1736666757026,8.92971867,186.58,186.52,8.92971867]
[1736666759210,8.92971867,186.58,186.51,8.92971867]
[1736666760130,8.92971867,186.58,186.52,8.92971867]
[1736666761307,8.92971867,186.56,186.49,226.42971867]
[1736666761512,8.92971867,186.53,186.47,10.46311867]
[1736666761712,8.92971867,186.53,186.47,1.5334]
[1736666762029,8.92971867,186.52,186.46,17.3712416]
[1736666762522,8.92971867,186.51,186.46,8.44152293]
[1736666762722,8.92971867,186.51,186.45,8.92971867]
[1736666764037,8.92971867,186.51,186.44,91.04152293]
[1736666764343,8.92971867,186.48,186.44,82.6]
[1736666765742,8.92971867,186.49,186.43,8.92971867]
[1736666766642,20.0,186.53,186.43,8.92971867]
[1736666766824,8.92971867,186.5,186.44,8.92971867]
[1736666768264,8.92971867,186.49,186.43,8.92971867]
[1736666768947,8.92971867,186.5,186.44,8.92971867]
[1736666769951,8.92971867,186.51,186.45,8.92971867]
[1736666772753,8.92971867,186.52,186.45,8.92971867]
[1736666773354,8.92971867,186.52,186.46,8.92971867]
[1736666779557,8.92971867,186.53,186.47,8.92971867]
[1736666781449,1.6137,186.59,186.5,8.92971867]
[1736666781651,8.92971867,186.57,186.51,8.92971867]
[1736666782965,8.92971867,186.58,186.51,8.92971867]
[1736666784971,8.92971867,186.57,186.51,8.92971867]
[1736666785474,28.92971867,186.57,186.51,8.92971867]
[1736666785855,20.0,186.57,186.48,0.80403876]
[1736666786057,8.92971867,186.56,186.5,8.92971867]
[1736666788667,28.92971867,186.57,186.51,8.92971867]
[1736666789069,20.0,186.57,186.52,8.92971867]
[1736666794677,28.92971867,186.57,186.52,8.92971867]
[1736666795066,28.92971867,186.57,186.51,8.92971867]
[1736666798783,28.92971867,186.57,186.52,8.92971867]
[1736666802975,20.0,186.57,186.52,8.92971867]
[1736666805059,28.92971867,186.57,186.52,8.92971867]
[1736666805254,28.92971867,186.57,186.51,8.92971867]
[1736666807174,28.92971867,186.57,186.49,106.376884]
[1736666807385,28.92971867,186.57,186.51,8.92971867]
[1736666808954,8.92971867,186.57,186.51,8.92971867]
[1736666811063,8.92971867,186.58,186.52,8.92971867]
[1736666812593,28.92971867,186.57,186.51,8.92971867]
[1736666813870,28.92971867,186.57,186.5,9.73374701]
[1736666814794,20.0,186.57,186.51,8.92971867]
[1736666817595,8.92971867,186.56,186.49,82.6]
[1736666817771,8.92971867,186.56,186.49,91.52971867]
[1736666817974,8.92971867,186.56,186.5,8.92971867]
[1736666818798,28.92971867,186.57,186.5,8.92971867]
[1736666823998,8.92971867,186.56,186.5,8.92971867]
[1736666826107,8.92971867,186.56,186.49,92.33378891]
[1736666827909,8.92971867,186.56,186.5,8.92971867]
[1736666828894,8.92971867,186.56,186.49,83.40407024]
[1736666829207,8.92971867,186.56,186.5,8.92971867]
[1736666830683,28.92971867,186.57,186.5,8.92971867]
[1736666839530,28.92971867,186.57,186.47,8.44152293]
[1736666839531,8.92971867,186.56,186.49,8.92971867]
[1736666841338,8.92971867,186.55,186.49,8.92971867]
[1736666844132,28.92971867,186.57,186.51,8.92971867]
[1736666849031,1.6137,186.59,186.53,8.92971867]
[1736666849333,1.6137,186.59,186.54,8.92971867]
[1736666850829,1.6137,186.59,186.55,8.92971867]
[1736666851428,8.92971867,186.61,186.55,8.92971867]
[1736666851625,8.0243,186.64,186.57,8.92971867]
[1736666851844,8.92971867,186.62,186.57,8.92971867]
[1736666852909,8.0243,186.64,186.58,8.92971867]
[1736666853112,8.92971867,186.63,186.57,8.92971867]
[1736666854752,8.92971867,186.62,186.57,8.92971867]
[1736666855256,8.0243,186.64,186.57,8.92971867]
[1736666855445,8.92971867,186.63,186.57,8.92971867]
[1736666855807,8.92971867,186.67,186.61,8.92971867]
[1736666856451,20.0,186.66,186.62,8.92971867]
[1736666858726,1.5826,186.69,186.64,8.92971867]
[1736666860459,8.92971867,186.68,186.59,135.70342872]
[1736666860667,8.92971867,186.67,186.61,8.92971867]
[1736666867475,8.92971867,186.67,186.62,8.92971867]
[1736666868163,8.92971867,186.68,186.58,83.40361672]
[1736666868369,8.92971867,186.68,186.62,8.92971867]
[1736666868880,8.92971867,186.67,186.61,8.92971867]
[1736666869057,8.92971867,186.63,186.55,104.063912]
[1736666869379,8.92971867,186.63,186.57,8.92971867]
[1736666869538,8.92971867,186.63,186.56,8.92971867]
[1736666869539,8.92971867,186.62,186.56,8.92971867]
[1736666870165,8.92971867,186.62,186.55,82.6]
[1736666870477,8.92971867,186.59,186.51,219.0246]
[1736666870778,8.92971867,186.59,186.54,8.92971867]
[1736666870961,20.0,186.63,186.54,8.92971867]
[1736666871175,8.92971867,186.59,186.54,8.92971867]
[1736666871494,8.92971867,186.6,186.54,8.92971867]
[1736666871874,8.92971867,186.62,186.56,8.92971867]
[1736666872179,8.92971867,186.62,186.57,8.92971867]
[1736666872694,8.92971867,186.62,186.56,8.92971867]
[1736666874295,8.92971867,186.61,186.55,8.92971867]
[1736666876196,8.92971867,186.61,186.54,0.80378923]
[1736666876376,8.92971867,186.61,186.55,8.92971867]
[1736666877964,8.92971867,186.62,186.56,8.92971867]
[1736666878392,28.92971867,186.63,186.57,8.92971867]
[1736666882298,28.92971867,186.63,186.54,0.80378923]
[1736666882500,28.92971867,186.63,186.57,8.92971867]
[1736666883229,28.92971867,186.63,186.54,0.80378923]
[1736666883524,8.92971867,186.62,186.56,8.92971867]
[1736666884228,8.92971867,186.6,186.54,8.92971867]
[1736666884422,8.92971867,186.59,186.53,226.42971867]
[1736666886534,8.92971867,186.59,186.53,217.5]
[1736666886831,8.92971867,186.59,186.53,226.42971867]
[1736666887018,20.0,186.63,186.54,8.92971867]
[1736666887019,8.92971867,186.6,186.54,8.92971867]
[1736666887216,8.92971867,186.62,186.56,8.92971867]
[1736666890841,20.0,186.63,186.56,8.92971867]
[1736666891001,8.92971867,186.62,186.56,8.92971867]
[1736666892407,8.92971867,186.61,186.56,8.92971867]
[1736666892607,8.92971867,186.62,186.55,8.92971867]
[1736666894136,8.92971867,186.61,186.55,8.92971867]
[1736666896447,8.92971867,186.61,186.53,82.6]
[1736666896609,8.92971867,186.6,186.54,8.92971867]
[1736666897509,8.92971867,186.57,186.51,8.92971867]
[1736666897710,8.92971867,186.56,186.5,8.92971867]
[1736666898135,8.92971867,186.57,186.51,8.92971867]
[1736666898341,8.92971867,186.57,186.52,8.92971867]
[1736666898811,8.92971867,186.57,186.51,8.92971867]
[1736666900136,8.92971867,186.57,186.52,8.92971867]
[1736666901260,1.5501,186.59,186.54,8.92971867]
[1736666901437,8.92971867,186.61,186.55,8.92971867]
[1736666903254,8.92971867,186.6,186.51,0.80392763]
[1736666903428,8.92971867,186.6,186.54,8.92971867]
[1736666904036,8.92971867,186.59,186.51,0.80392763]
[1736666904355,8.92971867,186.59,186.53,8.92971867]
[1736666913273,8.92971867,186.6,186.54,8.92971867]
[1736666913442,101.9,186.63,186.54,8.92971867]
[1736666913860,8.92971867,186.6,186.54,8.92971867]
[1736666917858,8.92971867,186.61,186.55,8.92971867]
[1736666918881,8.92971867,186.61,186.54,8.92971867]
[1736666919907,1.5501,186.64,186.56,8.92971867]
[1736666919908,8.92971867,186.62,186.56,8.92971867]
[1736666921988,1.5501,186.64,186.56,8.92971867]
[1736666922199,20.0,186.62,186.57,8.92971867]
[1736666924095,20.0,186.62,186.58,8.92971867]
[1736666926996,20.0,186.62,186.57,8.92971867]
[1736666936673,8.92971867,186.59,186.53,91.52971867]
[1736666936878,8.92971867,186.58,186.52,8.92971867]
[1736666938004,8.92971867,186.58,186.51,134.9]
[1736666938005,8.92971867,186.59,186.53,8.92971867]
[1736666938209,8.92971867,186.59,186.54,8.92971867]
[1736666938808,8.92971867,186.6,186.54,8.92971867]
[1736666938979,8.92971867,186.6,186.51,24.58080412]
[1736666939303,8.92971867,186.6,186.54,8.92971867]
[1736666941217,8.92971867,186.6,186.51,24.58080412]
[1736666941218,1.5672,186.58,186.53,8.92971867]
[1736666941394,8.92971867,186.57,186.51,8.92971867]
[1736666941589,8.92971867,186.56,186.5,91.52971867]
[1736666944010,8.92971867,186.56,186.51,8.92971867]
[1736666944625,8.92971867,186.53,186.47,8.92971867]
[1736666945423,8.92971867,186.52,186.46,17.3712416]
[1736666945791,8.92971867,186.53,186.47,8.92971867]
[1736666949624,1.5807,186.52,186.47,8.92971867]
[1736666949941,10.51041867,186.52,186.46,8.92971867]
[1736666955139,1.5807,186.52,186.47,8.92971867]
[1736666955346,1.5807,186.52,186.48,8.92971867]
[1736666960148,1.5807,186.52,186.44,0.80426269]
[1736666960450,1.5807,186.52,186.47,8.92971867]
[1736666965539,1.5807,186.52,186.45,23.776884]
[1736666965738,8.92971867,186.51,186.45,8.92971867]
[1736666966538,10.51041867,186.52,186.45,8.92971867]
[1736666968796,10.51041867,186.52,186.46,8.92971867]
[1736666977264,8.92971867,186.5,186.43,82.6]
[1736666977457,8.92971867,186.5,186.43,91.52971867]
[1736666977962,8.92971867,186.51,186.43,82.6]
[1736666978166,1.5807,186.52,186.47,8.92971867]
[1736666978354,1.5807,186.52,186.48,8.92971867]
[1736666984678,1.5807,186.52,186.47,8.92971867]
[1736666985052,1.5807,186.52,186.48,8.92971867]
[1736666987393,81.9,186.55,186.45,0.80425366]
[1736666987565,1.53,186.57,186.54,8.92971867]
[1736666987769,97.00251867,186.62,186.56,8.92971867]
[1736666987948,10.45971867,186.61,186.55,8.92971867]
[1736666990591,1.53,186.61,186.56,8.92971867]
[1736666994489,10.45971867,186.61,186.55,8.92971867]
[1736666997169,1.53,186.61,186.55,8.92971867]
[1736666998361,1.53,186.61,186.56,8.92971867]
[1736667001472,8.92971867,186.6,186.54,8.92971867]
[1736667003282,10.45971867,186.61,186.55,8.92971867]
[1736667004674,1.53,186.61,186.56,8.92971867]
[1736667004876,8.92971867,186.63,186.57,8.92971867]
[1736667005278,8.92971867,186.62,186.56,8.92971867]
[1736667005667,90.82971867,186.64,186.58,8.92971867]
[1736667005887,90.82971867,186.64,186.55,23.776884]
[1736667005888,1.5667,186.65,186.59,8.92971867]
[1736667006267,1.5667,186.65,186.6,8.92971867]
[1736667008797,1.5667,186.65,186.61,8.92971867]
[1736667009495,6.0243,186.7,186.61,8.92971867]
[1736667009799,8.92971867,186.69,186.63,8.92971867]